[Event "*** Titled Tuesday Blitz"]
[Site "Chess.com"]
[Date "2020.05.12"]
[Round "4"]
[White "Vaathi_Coming"]
[Black "relaxx87"]
[Result "1-0"]
[WhiteElo "2862"]
[BlackElo "2678"]
[TimeControl "180+1"]
[EndTime "10:39:19 PDT"]
[Termination "Vaathi_Coming won by checkmate"]

1. e4 {[%clk 0:03:00.9]} 1... c5 {[%clk 0:02:59.4]} 2. Nf3 {[%clk 0:03:00.8]}
2... d6 {[%clk 0:02:59.3]} 3. Nc3 {[%clk 0:02:59.4]} 3... Nf6 {[%clk 0:02:58.8]}
4. d4 {[%clk 0:02:58.7]} 4... cxd4 {[%clk 0:02:59.7]} 5. Nxd4 {[%clk 0:02:59.6]}
5... a6 {[%clk 0:02:59.9]} 6. g3 {[%clk 0:02:58.5]} 6... e5 {[%clk 0:02:59.2]}
7. Nf3 {[%clk 0:02:58.8]} 7... Be7 {[%clk 0:02:56.6]} 8. Bg2 {[%clk 0:02:57.2]}
8... O-O {[%clk 0:02:56.3]} 9. O-O {[%clk 0:02:57.6]} 9... b5 {[%clk 0:02:44.5]}
10. a4 {[%clk 0:02:55.6]} 10... b4 {[%clk 0:02:43.9]} 11. Nd5 {[%clk 0:02:56.2]}
11... a5 {[%clk 0:02:43.9]} 12. Be3 {[%clk 0:02:46.8]} 12... Ba6 {[%clk
0:02:33.2]} 13. Bb6 {[%clk 0:02:29.9]} 13... Qd7 {[%clk 0:02:19.4]} 14. Re1
{[%clk 0:02:16.4]} 14... Nxd5 {[%clk 0:02:15]} 15. exd5 {[%clk 0:02:10.3]} 15...
Bb7 {[%clk 0:02:13.1]} 16. c4 {[%clk 0:02:01.9]} 16... bxc3 {[%clk 0:02:00]} 17.
bxc3 {[%clk 0:02:02.8]} 17... Rc8 {[%clk 0:01:52.8]} 18. Rb1 {[%clk 0:01:52.5]}
18... Rxc3 {[%clk 0:01:40.1]} 19. Qd2 {[%clk 0:01:50.6]} 19... Rc8 {[%clk
0:01:37.5]} 20. Bxa5 {[%clk 0:01:36.5]} 20... Na6 {[%clk 0:01:34.2]} 21. Bb6
{[%clk 0:01:34.1]} 21... Nc5 {[%clk 0:01:28.7]} 22. a5 {[%clk 0:01:32.3]} 22...
Ba6 {[%clk 0:01:24.8]} 23. Re3 {[%clk 0:01:20.6]} 23... Qf5 {[%clk 0:01:19.5]}
24. Rbe1 {[%clk 0:00:48.3]} 24... Bf6 {[%clk 0:01:04.7]} 25. h4 {[%clk
0:00:44.8]} 25... Na4 {[%clk 0:00:48.8]} 26. Kh2 {[%clk 0:00:28]} 26... Rc2
{[%clk 0:00:45]} 27. Qd1 {[%clk 0:00:28]} 27... Rxf2 {[%clk 0:00:44.3]} 28. Qxa4
{[%clk 0:00:24]} 28... h5 {[%clk 0:00:22.7]} 29. Rc3 {[%clk 0:00:13.3]} 29...
Rxg2+ {[%clk 0:00:18]} 30. Kxg2 {[%clk 0:00:13.1]} 30... e4 {[%clk 0:00:18.7]}
31. Nd4 {[%clk 0:00:09.5]} 31... Qg4 {[%clk 0:00:18.8]} 32. Qd1 {[%clk
0:00:08.1]} 32... Qg6 {[%clk 0:00:17.5]} 33. Rce3 {[%clk 0:00:06.3]} 33... Bd3
{[%clk 0:00:17.6]} 34. Nc6 {[%clk 0:00:05.2]} 34... Qf5 {[%clk 0:00:14]} 35.
Rxd3 {[%clk 0:00:04.2]} 35... exd3 {[%clk 0:00:14.9]} 36. Qf3 {[%clk 0:00:04.5]}
36... Qd7 {[%clk 0:00:13.9]} 37. Rd1 {[%clk 0:00:04.3]} 37... Re8 {[%clk
0:00:12.5]} 38. Rxd3 {[%clk 0:00:03.9]} 38... Re1 {[%clk 0:00:12.1]} 39. Re3
{[%clk 0:00:04.2]} 39... Rb1 {[%clk 0:00:11.5]} 40. Re2 {[%clk 0:00:04.6]} 40...
Ra1 {[%clk 0:00:09.4]} 41. Bd4 {[%clk 0:00:04.3]} 41... Bxd4 {[%clk 0:00:08.7]}
42. Nxd4 {[%clk 0:00:05.2]} 42... Rxa5 {[%clk 0:00:09]} 43. Nc6 {[%clk
0:00:05.6]} 43... Rc5 {[%clk 0:00:08.9]} 44. Ne7+ {[%clk 0:00:05.5]} 44... Kf8
{[%clk 0:00:07.8]} 45. Qxh5 {[%clk 0:00:05.4]} 45... f6 {[%clk 0:00:04.7]} 46.
Qh8+ {[%clk 0:00:04.8]} 46... Kf7 {[%clk 0:00:05.2]} 47. Qg8# {[%clk 0:00:05.4]}
1-0

[Event "*** Titled Tuesday Blitz"]
[Site "Chess.com"]
[Date "2020.05.12"]
[Round "4"]
[White "Batica1984"]
[Black "Andrei_Belozerov"]
[Result "1-0"]
[WhiteElo "2807"]
[BlackElo "2597"]
[TimeControl "180+1"]
[EndTime "10:39:19 PDT"]
[Termination "Batica1984 won on time"]

1. e4 {[%clk 0:03:00.9]} 1... c5 {[%clk 0:02:59.4]} 2. Nf3 {[%clk 0:03:00.1]}
2... d6 {[%clk 0:02:59.7]} 3. d4 {[%clk 0:02:59.3]} 3... cxd4 {[%clk 0:03:00.1]}
4. Nxd4 {[%clk 0:03:00]} 4... Nf6 {[%clk 0:03:00.7]} 5. Nc3 {[%clk 0:03:00.5]}
5... a6 {[%clk 0:03:01]} 6. Bg5 {[%clk 0:02:57.8]} 6... e6 {[%clk 0:03:00.4]} 7.
Qf3 {[%clk 0:02:56.9]} 7... Be7 {[%clk 0:02:52.2]} 8. O-O-O {[%clk 0:02:50.3]}
8... Nbd7 {[%clk 0:02:51.5]} 9. g4 {[%clk 0:02:12.3]} 9... O-O {[%clk 0:02:44]}
10. Rg1 {[%clk 0:02:09.9]} 10... Qc7 {[%clk 0:02:26.1]} 11. Be3 {[%clk
0:02:03.7]} 11... g6 {[%clk 0:01:47.4]} 12. g5 {[%clk 0:01:57.7]} 12... Nh5
{[%clk 0:01:47.4]} 13. Be2 {[%clk 0:01:53]} 13... b5 {[%clk 0:01:45.9]} 14. Qh3
{[%clk 0:01:45.7]} 14... Ng7 {[%clk 0:01:45.3]} 15. Rg4 {[%clk 0:01:35.3]} 15...
Re8 {[%clk 0:01:15.4]} 16. Rh4 {[%clk 0:01:33]} 16... Nf8 {[%clk 0:01:15.3]} 17.
Bg4 {[%clk 0:01:27.3]} 17... b4 {[%clk 0:01:13.7]} 18. Nce2 {[%clk 0:01:26.3]}
18... e5 {[%clk 0:01:07.9]} 19. Nf5 {[%clk 0:01:16.1]} 19... Bxf5 {[%clk
0:00:59.9]} 20. exf5 {[%clk 0:01:16.1]} 20... Rac8 {[%clk 0:00:59.4]} 21. Rd2
{[%clk 0:01:15.8]} 21... gxf5 {[%clk 0:00:58.5]} 22. Bxf5 {[%clk 0:01:12]} 22...
Nxf5 {[%clk 0:00:58.3]} 23. Qxf5 {[%clk 0:01:12.9]} 23... Ng6 {[%clk 0:00:58.2]}
24. Rxh7 {[%clk 0:01:08.8]} 24... Kxh7 {[%clk 0:00:52.5]} 25. Qxf7+ {[%clk
0:01:08.9]} 25... Kh8 {[%clk 0:00:52.7]} 26. Qxg6 {[%clk 0:01:09.5]} 26... Bf8
{[%clk 0:00:48.7]} 27. Ng3 {[%clk 0:01:05.4]} 27... d5 {[%clk 0:00:23.1]} 28.
Qh5+ {[%clk 0:00:50.8]} 28... Qh7 {[%clk 0:00:21.7]} 29. Qxh7+ {[%clk
0:00:50.6]} 29... Kxh7 {[%clk 0:00:21.3]} 30. Rxd5 {[%clk 0:00:50.7]} 30... Kg6
{[%clk 0:00:20]} 31. h4 {[%clk 0:00:49.3]} 31... Be7 {[%clk 0:00:18]} 32. h5+
{[%clk 0:00:42.8]} 32... Kf7 {[%clk 0:00:17.7]} 33. Rxe5 {[%clk 0:00:42.1]}
33... Bd6 {[%clk 0:00:17.7]} 34. Rf5+ {[%clk 0:00:42.1]} 34... Ke6 {[%clk
0:00:17.3]} 35. Rf6+ {[%clk 0:00:37.4]} 35... Kd5 {[%clk 0:00:17.3]} 36. Nf5
{[%clk 0:00:34.9]} 36... Be5 {[%clk 0:00:17.3]} 37. Rxa6 {[%clk 0:00:33.8]}
37... Ke4 {[%clk 0:00:17.3]} 38. Nd6+ {[%clk 0:00:31.5]} 38... Bxd6 {[%clk
0:00:16.9]} 39. Rxd6 {[%clk 0:00:32.4]} 39... Kf3 {[%clk 0:00:16.1]} 40. g6
{[%clk 0:00:30.4]} 40... Ke2 {[%clk 0:00:15.9]} 41. h6 {[%clk 0:00:29.7]} 41...
Re4 {[%clk 0:00:13.5]} 42. g7 {[%clk 0:00:27.9]} 42... Rg4 {[%clk 0:00:13.4]}
43. b3 {[%clk 0:00:27.3]} 43... Re8 {[%clk 0:00:08.5]} 44. Kb2 {[%clk 0:00:27]}
44... Rg1 {[%clk 0:00:07.8]} 45. Rd2+ {[%clk 0:00:24.8]} 45... Kf3 {[%clk
0:00:07.4]} 46. Rd4 {[%clk 0:00:24.9]} 46... Re5 {[%clk 0:00:05.4]} 47. Rxb4
{[%clk 0:00:24.9]} 47... Rh5 {[%clk 0:00:05.1]} 48. Rf4+ {[%clk 0:00:24.9]}
48... Ke2 {[%clk 0:00:04.9]} 49. Rf8 {[%clk 0:00:25.8]} 49... Rhh1 {[%clk
0:00:03.1]} 50. g8=Q {[%clk 0:00:26]} 1-0

[Event "*** Titled Tuesday Blitz"]
[Site "Chess.com"]
[Date "2020.05.12"]
[Round "4"]
[White "mc4chess"]
[Black "CMS13"]
[Result "1-0"]
[WhiteElo "2414"]
[BlackElo "2180"]
[TimeControl "180+1"]
[EndTime "10:39:19 PDT"]
[Termination "mc4chess won by resignation"]

1. Nf3 {[%clk 0:02:55.6]} 1... d5 {[%clk 0:02:59.9]} 2. c4 {[%clk 0:02:51.9]}
2... e6 {[%clk 0:02:59.7]} 3. g3 {[%clk 0:02:51.8]} 3... Nf6 {[%clk 0:02:59.4]}
4. Bg2 {[%clk 0:02:51.4]} 4... Nc6 {[%clk 0:02:57]} 5. O-O {[%clk 0:02:51]} 5...
Bd6 {[%clk 0:02:54.8]} 6. b3 {[%clk 0:02:51]} 6... O-O {[%clk 0:02:54.1]} 7. Bb2
{[%clk 0:02:50.1]} 7... dxc4 {[%clk 0:02:53.6]} 8. bxc4 {[%clk 0:02:50.2]} 8...
e5 {[%clk 0:02:53.8]} 9. d3 {[%clk 0:02:50.4]} 9... Re8 {[%clk 0:02:52.4]} 10.
Nfd2 {[%clk 0:02:47.9]} 10... Bg4 {[%clk 0:02:43.4]} 11. Nc3 {[%clk 0:02:47.3]}
11... a6 {[%clk 0:02:41]} 12. Rb1 {[%clk 0:02:46]} 12... Rb8 {[%clk 0:02:29.8]}
13. Nce4 {[%clk 0:02:41.8]} 13... Nxe4 {[%clk 0:02:29]} 14. Nxe4 {[%clk
0:02:41.3]} 14... f5 {[%clk 0:02:27.3]} 15. Nxd6 {[%clk 0:02:20.1]} 15... Qxd6
{[%clk 0:02:24.1]} 16. Re1 {[%clk 0:02:05]} 16... b6 {[%clk 0:02:01.8]} 17. Qa4
{[%clk 0:01:52.2]} 17... Nd4 {[%clk 0:01:55.5]} 18. Bxd4 {[%clk 0:01:12.5]}
18... exd4 {[%clk 0:01:55.2]} 19. h3 {[%clk 0:00:21.5]} 19... Bxe2 {[%clk
0:01:35.5]} 20. Bf3 {[%clk 0:00:13.8]} 20... b5 {[%clk 0:01:33.6]} 21. cxb5
{[%clk 0:00:07.3]} 21... Bxf3 {[%clk 0:01:27.6]} 22. Rxe8+ {[%clk 0:00:07.6]}
22... Rxe8 {[%clk 0:01:27.2]} 23. bxa6 {[%clk 0:00:08.5]} 23... Ra8 {[%clk
0:01:23.6]} 24. a7 {[%clk 0:00:08.3]} 24... Qd8 {[%clk 0:00:42.7]} 25. Qc4+
{[%clk 0:00:06.9]} 25... Kh8 {[%clk 0:00:33.3]} 26. Qc5 {[%clk 0:00:03.7]} 26...
Bd5 {[%clk 0:00:16.5]} 27. a4 {[%clk 0:00:01.3]} 27... h6 {[%clk 0:00:16]} 28.
a5 {[%clk 0:00:01.6]} 28... Kh7 {[%clk 0:00:13.8]} 29. a6 {[%clk 0:00:02.1]}
29... f4 {[%clk 0:00:10.9]} 30. Rb8 {[%clk 0:00:01.1]} 30... Rxb8 {[%clk
0:00:10.5]} 31. axb8=Q {[%clk 0:00:02]} 31... Qxb8 {[%clk 0:00:08.3]} 32. Qxd5
{[%clk 0:00:02.6]} 32... Qb1+ {[%clk 0:00:08.2]} 33. Kg2 {[%clk 0:00:02.6]}
33... Qxd3 {[%clk 0:00:08.2]} 34. a7 {[%clk 0:00:02.8]} 34... f3+ {[%clk
0:00:08.1]} 35. Qxf3 {[%clk 0:00:03.2]} 35... Qa6 {[%clk 0:00:07.9]} 36. a8=Q
{[%clk 0:00:01.6]} 36... Qxa8 {[%clk 0:00:07.9]} 37. Qxa8 {[%clk 0:00:02.5]}
37... d3 {[%clk 0:00:08.1]} 38. Qe4+ {[%clk 0:00:03.4]} 38... Kh8 {[%clk
0:00:08.1]} 39. Qxd3 {[%clk 0:00:04.3]} 39... c5 {[%clk 0:00:08.5]} 40. Qd8+
{[%clk 0:00:05.1]} 40... Kh7 {[%clk 0:00:08.2]} 41. Qd5 {[%clk 0:00:06]} 41...
h5 {[%clk 0:00:08.7]} 42. Qe4+ {[%clk 0:00:06.7]} 42... Kh6 {[%clk 0:00:08.8]}
43. Qc4 {[%clk 0:00:07.6]} 43... g6 {[%clk 0:00:09.1]} 44. Qxc5 {[%clk
0:00:08.5]} 44... h4 {[%clk 0:00:09.6]} 45. Qe3+ {[%clk 0:00:09.4]} 45... g5
{[%clk 0:00:09.8]} 46. g4 {[%clk 0:00:10.3]} 46... Kg6 {[%clk 0:00:10]} 47. f4
{[%clk 0:00:10.6]} 47... gxf4 {[%clk 0:00:10.2]} 48. Qxf4 {[%clk 0:00:11.5]}
48... Kh7 {[%clk 0:00:10.5]} 49. Qf6 {[%clk 0:00:10.8]} 49... Kg8 {[%clk
0:00:10.5]} 50. Qe7 {[%clk 0:00:11.2]} 50... Kh8 {[%clk 0:00:10.6]} 51. Kf3
{[%clk 0:00:12.1]} 51... Kg8 {[%clk 0:00:11]} 52. Kf4 {[%clk 0:00:13]} 52... Kh8
{[%clk 0:00:11.2]} 53. Kf5 {[%clk 0:00:13.9]} 53... Kg8 {[%clk 0:00:12]} 54. Kg6
{[%clk 0:00:14.7]} 1-0

[Event "*** Titled Tuesday Blitz"]
[Site "Chess.com"]
[Date "2020.05.12"]
[Round "4"]
[White "VALPARAISO37"]
[Black "FMOlexandrProhorov"]
[Result "0-1"]
[WhiteElo "2375"]
[BlackElo "2105"]
[TimeControl "180+1"]
[EndTime "10:39:22 PDT"]
[Termination "FMOlexandrProhorov won on time"]

1. d4 {[%clk 0:03:00.9]} 1... g6 {[%clk 0:02:59.3]} 2. e4 {[%clk 0:03:00.3]}
2... Bg7 {[%clk 0:02:59.2]} 3. c4 {[%clk 0:03:00.9]} 3... d6 {[%clk 0:02:58.7]}
4. Nc3 {[%clk 0:03:00.5]} 4... e5 {[%clk 0:02:59]} 5. d5 {[%clk 0:02:58.8]} 5...
a5 {[%clk 0:02:59.2]} 6. Be3 {[%clk 0:02:58.2]} 6... Bh6 {[%clk 0:02:58.9]} 7.
Bxh6 {[%clk 0:02:56.5]} 7... Nxh6 {[%clk 0:02:59.2]} 8. Qd2 {[%clk 0:02:56]}
8... Ng8 {[%clk 0:02:59.3]} 9. h4 {[%clk 0:02:55.6]} 9... Nf6 {[%clk 0:02:53.7]}
10. f3 {[%clk 0:02:55.3]} 10... Na6 {[%clk 0:02:51.2]} 11. Qh6 {[%clk
0:02:54.4]} 11... Qe7 {[%clk 0:02:48.7]} 12. O-O-O {[%clk 0:02:52.6]} 12... Nc5
{[%clk 0:02:47.7]} 13. g4 {[%clk 0:02:51.9]} 13... Bd7 {[%clk 0:02:35.2]} 14.
Qe3 {[%clk 0:02:46.5]} 14... h6 {[%clk 0:02:16.2]} 15. Nge2 {[%clk 0:02:44.2]}
15... Kf8 {[%clk 0:02:09.8]} 16. Kb1 {[%clk 0:02:44]} 16... Kg7 {[%clk
0:02:09.8]} 17. Ng3 {[%clk 0:02:44.1]} 17... c6 {[%clk 0:02:06.9]} 18. Bd3
{[%clk 0:02:42.1]} 18... a4 {[%clk 0:01:58.9]} 19. Rdg1 {[%clk 0:02:38.1]} 19...
Nh7 {[%clk 0:01:50.1]} 20. Bc2 {[%clk 0:02:33.9]} 20... a3 {[%clk 0:01:46.8]}
21. b3 {[%clk 0:02:33.1]} 21... b5 {[%clk 0:01:46.1]} 22. dxc6 {[%clk
0:02:32.3]} 22... Bxc6 {[%clk 0:01:45.9]} 23. cxb5 {[%clk 0:02:32.7]} 23... Bb7
{[%clk 0:01:41.9]} 24. b4 {[%clk 0:02:31.2]} 24... Ne6 {[%clk 0:01:40.6]} 25.
Nf5+ {[%clk 0:02:25.1]} 25... gxf5 {[%clk 0:01:38]} 26. gxf5+ {[%clk 0:02:25.4]}
26... Kf8 {[%clk 0:01:32]} 27. Qxh6+ {[%clk 0:02:25]} 27... Ke8 {[%clk
0:01:32.3]} 28. fxe6 {[%clk 0:02:25.2]} 28... Qxe6 {[%clk 0:01:29]} 29. Qe3
{[%clk 0:02:13.2]} 29... Rc8 {[%clk 0:01:21.2]} 30. Bb3 {[%clk 0:02:12.4]} 30...
Qf6 {[%clk 0:01:18]} 31. Nd5 {[%clk 0:02:08.2]} 31... Bxd5 {[%clk 0:01:14.4]}
32. Bxd5 {[%clk 0:02:08.4]} 32... Ke7 {[%clk 0:01:12.7]} 33. b6 {[%clk
0:02:08.9]} 33... Nf8 {[%clk 0:01:03.9]} 34. b7 {[%clk 0:02:09.3]} 34... Rb8
{[%clk 0:01:03.4]} 35. Rg5 {[%clk 0:01:57.3]} 35... Ne6 {[%clk 0:00:59.2]} 36.
Rf5 {[%clk 0:01:56.8]} 36... Qh6 {[%clk 0:00:56.5]} 37. Qb6 {[%clk 0:01:49]}
37... Qd2 {[%clk 0:00:50.3]} 38. Rh2 {[%clk 0:00:34]} 38... Qxh2 {[%clk
0:00:44.7]} 39. Rxf7+ {[%clk 0:00:27.9]} 39... Kxf7 {[%clk 0:00:40.6]} 40. Qc7+
{[%clk 0:00:15.2]} 40... Kf6 {[%clk 0:00:39.7]} 41. Qc1 {[%clk 0:00:15.6]} 41...
Rbg8 {[%clk 0:00:23.5]} 42. b8=Q {[%clk 0:00:10.7]} 42... Rxb8 {[%clk
0:00:23.2]} 43. Qxa3 {[%clk 0:00:10.6]} 43... Qg1+ {[%clk 0:00:21.5]} 44. Kb2
{[%clk 0:00:09.4]} 44... Qd4+ {[%clk 0:00:22]} 45. Kb3 {[%clk 0:00:08.2]} 45...
Nc5+ {[%clk 0:00:19.6]} 46. Kc2 {[%clk 0:00:08.8]} 46... Rxb4 {[%clk 0:00:18.5]}
47. Bb3 {[%clk 0:00:06.3]} 47... Qd3+ {[%clk 0:00:18]} 48. Kb2 {[%clk
0:00:05.1]} 48... Rhb8 {[%clk 0:00:14.1]} 0-1

[Event "*** Titled Tuesday Blitz"]
[Site "Chess.com"]
[Date "2020.05.12"]
[Round "4"]
[White "CyberneticLion"]
[Black "gui_borba"]
[Result "1-0"]
[WhiteElo "2544"]
[BlackElo "2330"]
[TimeControl "180+1"]
[EndTime "10:39:23 PDT"]
[Termination "CyberneticLion won by resignation"]

1. e4 {[%clk 0:03:00.9]} 1... c6 {[%clk 0:02:59.7]} 2. d4 {[%clk 0:02:59]} 2...
d5 {[%clk 0:03:00.6]} 3. exd5 {[%clk 0:02:59.9]} 3... cxd5 {[%clk 0:03:01.5]} 4.
c4 {[%clk 0:03:00.2]} 4... Nf6 {[%clk 0:03:00.3]} 5. Nc3 {[%clk 0:03:00.6]} 5...
e6 {[%clk 0:03:00.8]} 6. Nf3 {[%clk 0:02:57.5]} 6... Be7 {[%clk 0:03:00.6]} 7.
c5 {[%clk 0:02:54.1]} 7... b6 {[%clk 0:02:56.8]} 8. b4 {[%clk 0:02:53.6]} 8...
O-O {[%clk 0:02:55.2]} 9. Be2 {[%clk 0:02:49.6]} 9... a5 {[%clk 0:02:55]} 10.
Na4 {[%clk 0:02:49.2]} 10... axb4 {[%clk 0:02:47.6]} 11. Nxb6 {[%clk 0:02:47.7]}
11... Ra7 {[%clk 0:02:47.3]} 12. O-O {[%clk 0:02:29.6]} 12... Ne4 {[%clk
0:02:41.2]} 13. Qb3 {[%clk 0:02:21.3]} 13... Nc3 {[%clk 0:02:13.4]} 14. Bd3
{[%clk 0:02:17.5]} 14... Nc6 {[%clk 0:02:13.2]} 15. a3 {[%clk 0:01:55.8]} 15...
Ba6 {[%clk 0:02:03.9]} 16. Bxa6 {[%clk 0:01:49.7]} 16... Rxa6 {[%clk 0:02:04.8]}
17. Bd2 {[%clk 0:01:50.2]} 17... Ne2+ {[%clk 0:01:59.9]} 18. Kh1 {[%clk
0:01:49.6]} 18... Nexd4 {[%clk 0:01:59]} 19. Nxd4 {[%clk 0:01:44.4]} 19... Nxd4
{[%clk 0:01:59.9]} 20. Qxb4 {[%clk 0:01:45]} 20... Nc2 {[%clk 0:01:47.3]} 21.
Qb5 {[%clk 0:01:43.8]} 21... Nxa1 {[%clk 0:01:38.9]} 22. Qxa6 {[%clk 0:01:42.2]}
22... Nb3 {[%clk 0:01:39]} 23. Bb4 {[%clk 0:01:36]} 23... Bxc5 {[%clk
0:01:34.1]} 24. Na4 {[%clk 0:01:27.8]} 24... Bxb4 {[%clk 0:01:25.2]} 25. axb4
{[%clk 0:01:28.7]} 25... Qa8 {[%clk 0:01:24.7]} 26. Qxa8 {[%clk 0:01:16.3]}
26... Rxa8 {[%clk 0:01:25.6]} 27. Nc3 {[%clk 0:01:17.2]} 27... Rb8 {[%clk
0:01:20.4]} 28. b5 {[%clk 0:01:12.1]} 28... Kf8 {[%clk 0:01:20.7]} 29. Rb1
{[%clk 0:01:10.5]} 29... Nc5 {[%clk 0:01:20.8]} 30. Kg1 {[%clk 0:01:07.2]} 30...
Ke7 {[%clk 0:01:20.9]} 31. Kf1 {[%clk 0:01:07.4]} 31... Kd6 {[%clk 0:01:20.4]}
32. Ke2 {[%clk 0:01:07.8]} 32... e5 {[%clk 0:01:13.6]} 33. f3 {[%clk 0:01:04]}
33... d4 {[%clk 0:01:08.8]} 34. Na2 {[%clk 0:00:59.7]} 34... f5 {[%clk
0:01:01.4]} 35. Kd2 {[%clk 0:00:55.6]} 35... e4 {[%clk 0:01:00]} 36. Nc1 {[%clk
0:00:43.5]} 36... Kd5 {[%clk 0:00:49.1]} 37. Na2 {[%clk 0:00:36.5]} 37... Re8
{[%clk 0:00:38.6]} 38. Nb4+ {[%clk 0:00:33.7]} 38... Kc4 {[%clk 0:00:38.6]} 39.
Na6 {[%clk 0:00:22.7]} 39... e3+ {[%clk 0:00:38]} 40. Kd1 {[%clk 0:00:22.5]}
40... d3 {[%clk 0:00:38]} 41. Rc1+ {[%clk 0:00:21.3]} 41... Kxb5 {[%clk
0:00:34.1]} 42. Nc7+ {[%clk 0:00:19.5]} 42... Kb4 {[%clk 0:00:23.7]} 43. Nxe8
{[%clk 0:00:17.2]} 43... Nb3 {[%clk 0:00:19.3]} 44. Rb1 {[%clk 0:00:16.4]} 44...
Kc3 {[%clk 0:00:18.3]} 45. Nxg7 {[%clk 0:00:14.6]} 45... e2+ {[%clk 0:00:17.9]}
46. Ke1 {[%clk 0:00:14.8]} 46... Kc2 {[%clk 0:00:17.9]} 47. Rxb3 {[%clk
0:00:14.2]} 47... Kxb3 {[%clk 0:00:18.8]} 48. Kd2 {[%clk 0:00:12.9]} 48... e1=Q+
{[%clk 0:00:19]} 49. Kxe1 {[%clk 0:00:12.2]} 49... Kc2 {[%clk 0:00:19.9]} 50.
Kf2 {[%clk 0:00:10.5]} 50... d2 {[%clk 0:00:20.8]} 51. Nxf5 {[%clk 0:00:11]} 1-0

[Event "*** Titled Tuesday Blitz"]
[Site "Chess.com"]
[Date "2020.05.12"]
[Round "4"]
[White "Gabrielian_Artur"]
[Black "viditchess"]
[Result "0-1"]
[WhiteElo "2711"]
[BlackElo "2952"]
[TimeControl "180+1"]
[EndTime "10:39:24 PDT"]
[Termination "viditchess won by resignation"]

1. e4 {[%clk 0:03:00.9]} 1... c5 {[%clk 0:02:59.6]} 2. Nc3 {[%clk 0:03:00.6]}
2... Nc6 {[%clk 0:02:56.1]} 3. Bb5 {[%clk 0:03:00.3]} 3... Nd4 {[%clk
0:02:55.5]} 4. Bc4 {[%clk 0:03:00.3]} 4... e6 {[%clk 0:02:55.3]} 5. Nf3 {[%clk
0:03:00.1]} 5... Nf6 {[%clk 0:02:55.1]} 6. O-O {[%clk 0:02:59.6]} 6... Qc7
{[%clk 0:02:54.9]} 7. d3 {[%clk 0:02:57.4]} 7... a6 {[%clk 0:02:53.8]} 8. Nxd4
{[%clk 0:02:54.6]} 8... cxd4 {[%clk 0:02:53.9]} 9. Ne2 {[%clk 0:02:54.7]} 9...
Nxe4 {[%clk 0:02:53.7]} 10. Nxd4 {[%clk 0:02:50.4]} 10... Nf6 {[%clk 0:02:49.1]}
11. Nf3 {[%clk 0:02:46.1]} 11... b5 {[%clk 0:02:47.7]} 12. Bb3 {[%clk
0:02:45.8]} 12... Bb7 {[%clk 0:02:48.2]} 13. Re1 {[%clk 0:02:43.7]} 13... Be7
{[%clk 0:02:39.1]} 14. h3 {[%clk 0:02:42.5]} 14... O-O {[%clk 0:02:36]} 15. Bg5
{[%clk 0:02:41]} 15... h6 {[%clk 0:02:30.5]} 16. Bh4 {[%clk 0:02:38.4]} 16... a5
{[%clk 0:02:23.9]} 17. a4 {[%clk 0:02:14.8]} 17... b4 {[%clk 0:02:23.5]} 18. Rc1
{[%clk 0:02:07.2]} 18... Rab8 {[%clk 0:01:55.4]} 19. Ne5 {[%clk 0:01:51.2]}
19... d6 {[%clk 0:01:48.5]} 20. Ng4 {[%clk 0:01:39.3]} 20... Nd5 {[%clk
0:01:23.6]} 21. Bxe7 {[%clk 0:01:22.3]} 21... Nxe7 {[%clk 0:01:14.3]} 22. c3
{[%clk 0:00:58.4]} 22... bxc3 {[%clk 0:01:11.5]} 23. Rxc3 {[%clk 0:00:55.8]}
23... Qb6 {[%clk 0:01:06.2]} 24. d4 {[%clk 0:00:47.1]} 24... Nf5 {[%clk
0:00:45.9]} 25. d5 {[%clk 0:00:37.8]} 25... e5 {[%clk 0:00:46.2]} 26. Bc2 {[%clk
0:00:28.9]} 26... Nd4 {[%clk 0:00:33.7]} 27. Nxh6+ {[%clk 0:00:17.9]} 27... Kh8
{[%clk 0:00:28.3]} 28. Nxf7+ {[%clk 0:00:14]} 28... Rxf7 {[%clk 0:00:28.4]} 29.
Qh5+ {[%clk 0:00:14]} 29... Kg8 {[%clk 0:00:29]} 30. Qh7+ {[%clk 0:00:13.6]}
30... Kf8 {[%clk 0:00:29.6]} 31. Qh8+ {[%clk 0:00:13.8]} 31... Ke7 {[%clk
0:00:30.2]} 32. Qxb8 {[%clk 0:00:13.9]} 32... Nc6 {[%clk 0:00:19.6]} 33. Qxb7+
{[%clk 0:00:12.6]} 33... Qxb7 {[%clk 0:00:19.3]} 34. dxc6 {[%clk 0:00:13.1]}
34... Qxb2 {[%clk 0:00:18.1]} 35. Ree3 {[%clk 0:00:11.5]} 35... Kd8 {[%clk
0:00:18.2]} 36. Red3 {[%clk 0:00:08.7]} 36... Kc7 {[%clk 0:00:18.4]} 37. Kh2
{[%clk 0:00:07.5]} 37... Rxf2 {[%clk 0:00:17.8]} 38. Rg3 {[%clk 0:00:03.7]}
38... g5 {[%clk 0:00:15.8]} 39. Be4 {[%clk 0:00:01.8]} 39... Qe2 {[%clk
0:00:13.1]} 40. Rce3 {[%clk 0:00:02.7]} 40... Qd2 {[%clk 0:00:12.7]} 41. Rc3
{[%clk 0:00:03.6]} 41... d5 {[%clk 0:00:12.1]} 42. Rxg5 {[%clk 0:00:04.5]} 42...
Qxg5 {[%clk 0:00:12.1]} 43. Bxd5 {[%clk 0:00:04.4]} 43... Qf4+ {[%clk
0:00:12.2]} 44. Rg3 {[%clk 0:00:03.6]} 44... e4 {[%clk 0:00:12.3]} 0-1